[Event "Niedersachsen-ch A 2024"]
[Site "Verden Aller"]
[Date "2024.01.06"]
[Round "6.33"]
[White "Rausch, Darius"]
[Black "Behn, Cord"]
[Result "1-0"]
[ECO "B08"]
[WhiteElo "1742"]
[BlackElo "1837"]
[Annotator "NA RC"]
[PlyCount "55"]
[EventDate "2024.01.01"]
[EventType "swiss"]
[EventCountry "GER"]
[SourceTitle "playchess.com"]
[Source "ChessBase"]
[SourceQuality "1"]
[TimeControl "40/5400+30:1800+30"]

1. d4 {[%emt 0:00:02]} Nf6 {[%emt 0:00:12]} 2. Bf4 {[%emt 0:00:09]} d6 {[%emt 0:00:42]} 3. Nc3 {[%emt 0:00:03]} g6 {[%emt 0:00:10]} 4. e4 {[%emt 0:00:04]} Bg7 {[%emt 0:00:15]} 5. Qd2 {[%emt 0:00:06]} c6 {[%emt 0:01:16]} 6. Nf3 {[%emt 0:00:08]} b5 {[%emt 0:00:34]} 7. a3 {[%emt 0:03:35]} a6 {[%emt 0:06:23]} 8. Bh6 {[%emt 0:02:35]} Bxh6 {[%emt 0:10:34]} 9. Qxh6 {[%emt 0:00:03]} Bb7 {[%emt 0:00:07]} 10. e5 {[%emt 0:06:15]} dxe5 {[%emt 0:04:03]} 11. dxe5 {[%emt 0:00:12]} Nd5 {[%emt 0:00:09]} 12. Qg7 {[%emt 0:04:20]} Rf8 {[%emt 0:00:11]} 13. Ng5 {[%emt 0:02:12]} Nxc3 {[%emt 0:12:25]} 14. Nxh7 {[%emt 0:07:32]} Nd7 {[%emt 0:00:40]} 15. e6 {[%emt 0:05:55]} fxe6 {[%emt 0:04:46]} 16. Nxf8 {[%emt 0:03:35]} Nxf8 {[%emt 0:00:14]} 17. Qxc3 {[%emt 0:00:20]} Qb6 {[%emt 0:00:28]} 18. Qe3 {[%emt 0:01:58]} Qxe3+ {[%emt 0:02:38]} 19. fxe3 {[%emt 0:00:05]} c5 {[%emt 0:00:06]} 20. a4 {[%emt 0:01:56]} b4 {[%emt 0:00:58]} 21. O-O-O {[%emt 0:01:43]} Nh7 {[%emt 0:09:47]} 22. Bd3 {[%emt 0:01:50]} Kf7 {[%emt 0:00:36]} 23. Rhf1+ {[%emt 0:00:43]} Nf6 {[%emt 0:00:12]} 24. Rf2 {[%emt 0:04:49]} g5 {[%emt 0:02:33]} 25. Bc4 {[%emt 0:02:05]} a5 {[%emt 0:04:02]} 26. b3 {[%emt 0:00:39]} Bc6 {[%emt 0:00:20]} 27. Rf5 {[%emt 0:08:07]} Rg8 {[%emt 0:03:43]} 28. Rxc5 {[%emt 0:07:45]} 1-0

[Event "Niedersachsen-ch A 2024"]
[Site "Verden Aller"]
[Date "2024.01.06"]
[Round "6.34"]
[White "Vormann, Dirk"]
[Black "Poelig, Juergen"]
[Result "1-0"]
[ECO "D02"]
[WhiteElo "1854"]
[BlackElo "1819"]
[Annotator "NA RC"]
[PlyCount "97"]
[EventDate "2024.01.01"]
[EventType "swiss"]
[EventCountry "GER"]
[SourceTitle "playchess.com"]
[Source "ChessBase"]
[SourceQuality "1"]
[TimeControl "40/5400+30:1800+30"]

1. d4 {[%emt 0:00:06]} d5 {[%emt 0:00:02]} 2. Nf3 {[%emt 0:00:04]} e6 {[%emt 0:00:09]} 3. e3 {[%emt 0:00:05]} c5 {[%emt 0:00:11]} 4. dxc5 {[%emt 0:00:49]} Bxc5 {[%emt 0:00:03]} 5. Bb5+ {[%emt 0:02:03]} Nc6 {[%emt 0:00:20]} 6. O-O {[%emt 0:00:12]} Nf6 {[%emt 0:00:31]} 7. c4 {[%emt 0:00:39]} O-O {[%emt 0:00:28]} 8. cxd5 {[%emt 0:03:18]} exd5 {[%emt 0:03:07]} 9. Bxc6 {[%emt 0:02:38]} bxc6 {[%emt 0:00:03]} 10. Nc3 {[%emt 0:02:37]} Bg4 {[%emt 0:00:25]} 11. b3 {[%emt 0:03:26]} Re8 {[%emt 0:04:32]} 12. h3 {[%emt 0:00:19]} Bh5 {[%emt 0:00:38]} 13. Bb2 {[%emt 0:00:38]} Bd6 {[%emt 0:03:44]} 14. Ne2 {[%emt 0:09:47]} Bxf3 {[%emt 0:03:21]} 15. gxf3 {[%emt 0:00:02]} Nh5 {[%emt 0:23:26]} 16. f4 {[%emt 0:02:09]} Qh4 {[%emt 0:04:10]} 17. Kg2 {[%emt 0:00:02]} Re6 {[%emt 0:03:05]} 18. Rh1 {[%emt 1:10:36]} Rg6+ {[%emt 0:04:43]} 19. Kf1 {[%emt 0:00:00]} Re8 {[%emt 0:03:51]} 20. Qd4 {[%emt 0:00:00]} Bb8 {[%emt 0:07:30]} 21. f5 {[%emt 0:00:00]} Re4 {[%emt 0:01:47]} 22. fxg6 {[%emt 0:00:00]} Rxd4 {[%emt 0:00:29]} 23. gxh7+ {[%emt 0:00:00]} Kxh7 {[%emt 0:01:07]} 24. Bxd4 {[%emt 0:00:00]} Qe4 {[%emt 0:02:19]} 25. Rg1 {[%emt 0:00:00]} Be5 {[%emt 0:10:02]} 26. Rg4 {[%emt 0:00:00]} Qf5 {[%emt 0:00:38]} 27. Kg2 {[%emt 0:00:00]} Bxd4 {[%emt 0:04:46]} 28. Nxd4 {[%emt 0:00:00]} Qc8 {[%emt 0:05:52]} 29. b4 {[%emt 0:00:00]} c5 {[%emt 0:02:03]} 30. bxc5 {[%emt 0:00:00]} Qxc5 {[%emt 0:00:04]} 31. Rb1 {[%emt 0:00:00]} Qc7 {[%emt 0:03:39]} 32. Rh4 {[%emt 0:00:00]} g6 {[%emt 0:00:38]} 33. Nf3 {[%emt 0:00:00]} Kg7 {[%emt 0:02:08]} 34. Rhb4 {[%emt 0:00:00]} Nf6 {[%emt 0:02:36]} 35. Rb7 {[%emt 0:00:00]} Qc2 {[%emt 0:03:05]} 36. R1b2 {[%emt 0:00:00]} Qa4 {[%emt 0:01:44]} 37. Ng5 {[%emt 0:00:00]} Nd7 {[%emt 0:00:30]} 38. R2b4 {[%emt 0:00:00]} Qc6 {[%emt 0:00:11]} 39. Nf3 {[%emt 0:00:00]} a5 {[%emt 0:01:03]} 40. R4b5 {[%emt 0:00:00]} a4 {[%emt 0:00:42]} 41. Nd4 {[%emt 0:15:36]} Qd6 {[%emt 0:05:11]} 42. Ra7 {[%emt 0:00:00]} Ne5 {[%emt 0:05:42]} 43. Rbb7 {[%emt 0:00:00]} Qa3 {[%emt 0:06:24]} 44. Nf3 {[%emt 0:00:00]} Nxf3 {[%emt 0:02:04]} 45. Kxf3 {[%emt 0:00:00]} Qd3 {[%emt 0:02:20]} 46. Rxf7+ {[%emt 0:00:00]} Kh6 {[%emt 0:00:14]} 47. Kg3 {[%emt 0:00:00]} Qf1 {[%emt 0:02:21]} 48. Kh2 {[%emt 0:00:00]} Kg5 {[%emt 0:01:36]} 49. f4+ {[%emt 0:00:00]} 1-0

[Event "Niedersachsen-ch A 2024"]
[Site "Verden Aller"]
[Date "2024.01.06"]
[Round "6.35"]
[White "Tenne, Fabian"]
[Black "Stiller, Maximilian"]
[Result "0-1"]
[ECO "A07"]
[WhiteElo "1817"]
[BlackElo "1786"]
[Annotator "NA RC"]
[PlyCount "72"]
[EventDate "2024.01.01"]
[EventType "swiss"]
[EventCountry "GER"]
[SourceTitle "playchess.com"]
[Source "ChessBase"]
[SourceQuality "1"]
[TimeControl "40/5400+30:1800+30"]

1. Nf3 {[%emt 0:00:33]} Nf6 {[%emt 0:00:20]} 2. g3 {[%emt 0:00:53]} d5 {[%emt 0:00:43]} 3. Bg2 {[%emt 0:00:08]} Bf5 {[%emt 0:01:49]} 4. d3 {[%emt 0:00:09]} e6 {[%emt 0:01:20]} 5. Nbd2 {[%emt 0:07:18]} Be7 {[%emt 0:02:48]} 6. Nh4 {[%emt 0:00:48]} Bg4 {[%emt 0:00:33]} 7. c3 {[%emt 0:08:53]} c6 {[%emt 0:01:21]} 8. Qc2 {[%emt 0:00:11]} Nbd7 {[%emt 0:00:32]} 9. e4 {[%emt 0:02:48]} dxe4 {[%emt 0:10:18]} 10. dxe4 {[%emt 0:00:06]} Nc5 {[%emt 0:02:28]} 11. O-O {[%emt 0:00:08]} Be2 {[%emt 0:14:40]} 12. Re1 {[%emt 0:00:14]} Bd3 {[%emt 0:00:31]} 13. Qd1 {[%emt 0:00:46]} Ba6 {[%emt 0:02:27]} 14. e5 {[%emt 0:01:20]} Nd5 {[%emt 0:04:46]} 15. Qg4 {[%emt 0:00:56]} g5 {[%emt 0:04:38]} 16. Nhf3 {[%emt 0:04:03]} h5 {[%emt 0:02:24]} 17. Qd4 {[%emt 0:02:59]} Nd3 {[%emt 0:01:51]} 18. Ne4 {[%emt 0:06:46]} Nxe1 {[%emt 0:06:26]} 19. Nxe1 {[%emt 0:01:11]} Rg8 {[%emt 0:02:02]} 20. b3 {[%emt 0:11:56]} Qb6 {[%emt 0:01:33]} 21. Qd2 {[%emt 0:01:19]} O-O-O {[%emt 0:00:51]} 22. Qc2 {[%emt 0:00:10]} g4 {[%emt 0:07:03]} 23. a3 {[%emt 0:00:11]} f5 {[%emt 0:02:45]} 24. exf6 {[%emt 0:00:30]} Nxf6 {[%emt 0:00:45]} 25. Be3 {[%emt 0:00:46]} Qc7 {[%emt 0:05:58]} 26. Ng5 {[%emt 0:01:35]} Qd7 {[%emt 0:08:07]} 27. Nf7 {[%emt 0:03:23]} Rdf8 {[%emt 0:00:06]} 28. Rd1 {[%emt 0:01:44]} Qe8 {[%emt 0:00:42]} 29. Ne5 {[%emt 0:01:33]} Nd5 {[%emt 0:01:30]} 30. Bxa7 {[%emt 0:03:30]} Rf5 {[%emt 0:06:18]} 31. c4 {[%emt 0:00:34]} Rxe5 {[%emt 0:00:39]} 32. cxd5 {[%emt 0:00:02]} exd5 {[%emt 0:01:59]} 33. Bxd5 {[%emt 0:00:17]} Bc5 {[%emt 0:00:47]} 34. Bxc5 {[%emt 0:06:10]} Rxe1+ {[%emt 0:00:34]} 35. Kg2 {[%emt 0:00:27]} Bf1+ {[%emt 0:00:29]} 36. Kg1 {[%emt 0:01:05]} Bh3+ {[%emt 0:00:08]} 0-1

[Event "Niedersachsen-ch A 2024"]
[Site "Verden Aller"]
[Date "2024.01.06"]
[Round "6.36"]
[White "Stummeyer, Dieter"]
[Black "Trunz, Tamila"]
[Result "1-0"]
[ECO "B42"]
[WhiteElo "1804"]
[BlackElo "1766"]
[Annotator "NA"]
[PlyCount "169"]
[EventDate "2024.01.01"]
[EventType "swiss"]
[EventCountry "GER"]
[SourceTitle "playchess.com"]
[Source "ChessBase"]
[SourceQuality "1"]
[TimeControl "40/5400+30:1800+30"]

1. e4 {[%emt 0:00:03]} c5 {[%emt 0:00:07]} 2. Nf3 {[%emt 0:00:06]} e6 {[%emt 0:00:05]} 3. d4 {[%emt 0:00:10]} cxd4 {[%emt 0:00:06]} 4. Nxd4 {[%emt 0:00:10]} Nf6 {[%emt 0:00:07]} 5. Bd3 {[%emt 0:02:55]} Nc6 {[%emt 0:00:42]} 6. Be3 {[%emt 0:00:21]} a6 {[%emt 0:07:48]} 7. O-O {[%emt 0:00:25]} Qc7 {[%emt 0:01:23]} 8. Nd2 {[%emt 0:03:20]} Be7 {[%emt 0:12:48]} 9. Rc1 {[%emt 0:01:38]} O-O {[%emt 0:06:05]} 10. c4 {[%emt 0:01:14]} b6 {[%emt 0:04:13]} 11. Bb1 {[%emt 0:01:56]} Bb7 {[%emt 0:01:08]} 12. N2b3 {[%emt 0:02:55]} Rad8 {[%emt 0:09:16]} 13. f3 {[%emt 0:02:24]} Ne5 {[%emt 0:11:01]} 14. Qc2 {[%emt 0:01:33]} Rc8 {[%emt 0:03:01]} 15. Nd2 {[%emt 0:01:11]} Qb8 {[%emt 0:00:58]} 16. h3 {[%emt 0:01:49]} b5 {[%emt 0:05:03]} 17. b3 {[%emt 0:00:21]} Ba3 {[%emt 0:03:40]} 18. Rcd1 {[%emt 0:01:58]} Bb4 {[%emt 0:01:37]} 19. Rfe1 {[%emt 0:03:06]} bxc4 {[%emt 0:00:46]} 20. f4 {[%emt 0:02:45]} Ng6 {[%emt 0:04:16]} 21. bxc4 {[%emt 0:02:40]} Bxd2 {[%emt 0:02:56]} 22. Bxd2 {[%emt 0:01:11]} Qa7 {[%emt 0:01:43]} 23. Bb4 {[%emt 0:02:13]} Rfe8 {[%emt 0:01:08]} 24. Kh2 {[%emt 0:03:47]} e5 {[%emt 0:01:32]} 25. Nf5 {[%emt 0:01:16]} a5 {[%emt 0:11:35]} 26. Ba3 {[%emt 0:01:13]} Bxe4 {[%emt 0:01:21]} 27. Rxe4 {[%emt 0:00:32]} Nxe4 {[%emt 0:00:05]} 28. Qxe4 {[%emt 0:00:22]} exf4 {[%emt 0:00:33]} 29. Qd4 {[%emt 0:01:38]} Qxd4 {[%emt 0:00:25]} 30. Rxd4 {[%emt 0:00:03]} Re1 {[%emt 0:01:26]} 31. Nd6 {[%emt 0:01:19]} Rb8 {[%emt 0:00:29]} 32. Bxg6 {[%emt 0:00:52]} hxg6 {[%emt 0:00:07]} 33. Rxf4 {[%emt 0:01:03]} f6 {[%emt 0:00:47]} 34. Nb5 {[%emt 0:01:11]} Re2 {[%emt 0:00:27]} 35. Bd6 {[%emt 0:01:07]} Rbe8 {[%emt 0:00:27]} 36. a3 {[%emt 0:03:31]} Rc2 {[%emt 0:00:39]} 37. Rg4 {[%emt 0:03:26]} g5 {[%emt 0:03:04]} 38. Nc7 {[%emt 0:02:03]} Ree2 {[%emt 0:00:34]} 39. Nd5 {[%emt 0:00:41]} Kf7 {[%emt 0:01:51]} 40. Bc7 {[%emt 0:03:02]} a4 {[%emt 0:02:24]} 41. Bd6 {[%emt 0:31:26]} Rcd2 {[%emt 0:09:26]} 42. Bb4 {[%emt 0:00:00]} Rd3 {[%emt 0:00:39]} 43. h4 {[%emt 0:00:00]} gxh4 {[%emt 0:01:08]} 44. Rxh4 {[%emt 0:00:00]} Rb3 {[%emt 0:01:26]} 45. Nb6 {[%emt 0:00:00]} g5 {[%emt 0:02:14]} 46. Rg4 {[%emt 0:00:00]} Kg6 {[%emt 0:00:53]} 47. Nxa4 {[%emt 0:00:00]} Rd3 {[%emt 0:01:38]} 48. Nc5 {[%emt 0:00:00]} Rd1 {[%emt 0:00:30]} 49. Nb3 {[%emt 0:00:00]} Re3 {[%emt 0:01:15]} 50. Nd2 {[%emt 0:00:00]} Ree1 {[%emt 0:01:47]} 51. Nf3 {[%emt 0:00:00]} Rf1 {[%emt 0:02:05]} 52. Bc5 {[%emt 0:00:00]} Kh5 {[%emt 0:02:37]} 53. Kg3 {[%emt 0:00:00]} d6 {[%emt 0:00:58]} 54. Bb6 {[%emt 0:00:00]} Kg6 {[%emt 0:01:10]} 55. a4 {[%emt 0:00:00]} Ra1 {[%emt 0:00:31]} 56. a5 {[%emt 0:00:13]} Ra3 {[%emt 0:01:04]} 57. Bc7 {[%emt 0:02:10]} Kh6 {[%emt 0:01:55]} 58. Bd8 {[%emt 0:00:28]} Kg6 {[%emt 0:00:10]} 59. Kh2 {[%emt 0:01:22]} Kh5 {[%emt 0:00:39]} 60. Kg3 {[%emt 0:06:05]} Rg1 {[%emt 0:00:28]} 61. Rd4 {[%emt 0:04:53]} Rc1 {[%emt 0:03:04]} 62. Bxf6 {[%emt 0:01:28]} Rxa5 {[%emt 0:00:43]} 63. Bxg5 {[%emt 0:04:23]} Rxg5+ {[%emt 0:00:18]} 64. Nxg5 {[%emt 0:00:04]} Kxg5 {[%emt 0:00:06]} 65. Kf3 {[%emt 0:01:08]} Rc3+ {[%emt 0:00:27]} 66. Ke4 {[%emt 0:00:35]} Rc2 {[%emt 0:01:07]} 67. Kd5 {[%emt 0:00:14]} Rxg2 {[%emt 0:01:02]} 68. Kxd6 {[%emt 0:00:08]} Kf5 {[%emt 0:00:17]} 69. Rd5+ {[%emt 0:01:57]} Kf6 {[%emt 0:00:40]} 70. c5 {[%emt 0:00:22]} Rg8 {[%emt 0:00:38]} 71. Kc7 {[%emt 0:00:33]} Ke6 {[%emt 0:00:51]} 72. Rd6+ {[%emt 0:00:05]} Ke7 {[%emt 0:00:43]} 73. c6 {[%emt 0:00:59]} Ra8 {[%emt 0:00:57]} 74. Rd7+ {[%emt 0:00:02]} Ke8 {[%emt 0:00:25]} 75. Kb7 {[%emt 0:00:43]} Ra3 {[%emt 0:00:51]} 76. Rd5 {[%emt 0:02:03]} Rb3+ {[%emt 0:00:22]} 77. Kc8 {[%emt 0:01:41]} Rc3 {[%emt 0:00:11]} 78. c7 {[%emt 0:00:39]} Ke7 {[%emt 0:00:15]} 79. Kb7 {[%emt 0:02:03]} Rb3+ {[%emt 0:00:09]} 80. Kc8 {[%emt 0:02:40]} Rc3 {[%emt 0:00:24]} 81. Rd7+ {[%emt 0:00:05]} Ke8 {[%emt 0:00:18]} 82. Rd6 {[%emt 0:02:30]} Ke7 {[%emt 0:00:17]} 83. Rb6 {[%emt 0:01:18]} Rc4 {[%emt 0:00:30]} 84. Kb8 {[%emt 0:01:32]} Kd7 {[%emt 0:03:43]} 85. Rb7 {[%emt 0:00:13]} 1-0

[Event "Niedersachsen-ch A 2024"]
[Site "Verden Aller"]
[Date "2024.01.07"]
[Round "7.1"]
[White "Lichtmannecker, Daniel"]
[Black "Hoellmann, Ludger"]
[Result "1/2-1/2"]
[ECO "B13"]
[WhiteElo "2124"]
[BlackElo "2015"]
[Annotator "RC"]
[PlyCount "79"]
[EventDate "2024.01.01"]
[EventType "swiss"]
[EventCountry "GER"]
[SourceTitle "playchess.com"]
[Source "ChessBase"]
[SourceQuality "1"]
[TimeControl "40/5400+30:1800+30"]

1. d4 {[%emt 0:00:05]} Nf6 {[%emt 0:01:05]} 2. Nc3 {[%emt 0:00:09]} d5 {[%emt 0:02:16]} 3. Bf4 {[%emt 0:00:10]} c5 {[%emt 0:06:45]} 4. e3 {[%emt 0:00:08]} cxd4 {[%emt 0:00:18]} 5. exd4 {[%emt 0:00:07]} Bg4 {[%emt 0:00:33]} 6. f3 {[%emt 0:00:10]} Bd7 {[%emt 0:00:07]} 7. Nb5 {[%emt 0:00:24]} Bxb5 {[%emt 0:06:02]} 8. Bxb5+ {[%emt 0:00:13]} Nc6 {[%emt 0:00:12]} 9. c3 {[%emt 0:00:08]} a6 {[%emt 0:02:26]} 10. Bd3 {[%emt 0:03:27]} e6 {[%emt 0:00:25]} 11. Ne2 {[%emt 0:03:01]} Bd6 {[%emt 0:01:14]} 12. Qd2 {[%emt 0:05:01]} Rc8 {[%emt 0:03:35]} 13. O-O {[%emt 0:02:00]} O-O {[%emt 0:06:31]} 14. Rfe1 {[%emt 0:01:47]} Re8 {[%emt 0:10:34]} 15. Rad1 {[%emt 0:03:07]} Na5 {[%emt 0:00:53]} 16. b3 {[%emt 0:04:57]} b5 {[%emt 0:04:55]} 17. Bb1 {[%emt 0:03:35]} Bxf4 {[%emt 0:05:24]} 18. Nxf4 {[%emt 0:02:10]} Qc7 {[%emt 0:00:32]} 19. Rc1 {[%emt 0:04:47]} Nc6 {[%emt 0:03:25]} 20. Kh1 {[%emt 0:19:13]} Red8 {[%emt 0:09:28]} 21. Nd3 {[%emt 0:01:05]} Nd7 {[%emt 0:01:25]} 22. f4 {[%emt 0:02:15]} Re8 {[%emt 0:06:40]} 23. Re3 {[%emt 0:05:36]} Nf8 {[%emt 0:08:17]} 24. Rce1 {[%emt 0:02:06]} b4 {[%emt 0:01:56]} 25. cxb4 {[%emt 0:04:47]} Nxd4 {[%emt 0:01:52]} 26. Nc5 {[%emt 0:05:22]} Qxf4 {[%emt 0:00:39]} 27. Rd3 {[%emt 0:04:58]} Qxd2 {[%emt 0:02:33]} 28. Rxd2 {[%emt 0:00:05]} e5 {[%emt 0:03:42]} 29. Nxa6 {[%emt 0:00:16]} f6 {[%emt 0:05:02]} 30. b5 {[%emt 0:04:29]} Nxb5 {[%emt 0:01:04]} 31. Rxd5 {[%emt 0:01:39]} Nc3 {[%emt 0:00:35]} 32. Rc5 {[%emt 0:01:39]} Nxb1 {[%emt 0:00:26]} 33. Rxb1 {[%emt 0:01:09]} Ne6 {[%emt 0:00:06]} 34. Rxc8 {[%emt 0:01:25]} Rxc8 {[%emt 0:00:02]} 35. b4 {[%emt 0:00:36]} Rc2 {[%emt 0:02:51]} 36. a4 {[%emt 0:03:11]} Ra2 {[%emt 0:01:03]} 37. a5 {[%emt 0:02:30]} Kf7 {[%emt 0:02:19]} 38. Nb8 {[%emt 0:03:33]} Nd4 {[%emt 0:00:15]} 39. Kg1 {[%emt 0:02:22]} Ke6 {[%emt 0:01:04]} 40. Na6 {[%emt 0:03:34]} 1/2-1/2

[Event "Niedersachsen-ch A 2024"]
[Site "Verden Aller"]
[Date "2024.01.07"]
[Round "7.2"]
[White "Stotyn, Fabian"]
[Black "Hebbinghaus, Holger"]
[Result "0-1"]
[ECO "B13"]
[WhiteElo "2139"]
[BlackElo "2164"]
[Annotator "RC"]
[PlyCount "56"]
[EventDate "2024.01.01"]
[EventType "swiss"]
[EventCountry "GER"]
[SourceTitle "playchess.com"]
[Source "ChessBase"]
[SourceQuality "1"]
[TimeControl "40/5400+30:1800+30"]

1. e4 {[%emt 0:00:03]} c6 {[%emt 0:00:05]} 2. d4 {[%emt 0:03:19]} d5 {[%emt 0:00:10]} 3. exd5 {[%emt 0:01:05]} cxd5 {[%emt 0:00:07]} 4. Bd3 {[%emt 0:00:23]} Nc6 {[%emt 0:00:09]} 5. Ne2 {[%emt 0:00:33]} Bg4 {[%emt 0:02:00]} 6. c3 {[%emt 0:06:52]} Qc7 {[%emt 0:04:52]} 7. f3 {[%emt 0:03:36]} Bd7 {[%emt 0:00:07]} 8. Bf4 {[%emt 0:03:13]} e5 {[%emt 0:00:35]} 9. dxe5 {[%emt 0:04:00]} Nxe5 {[%emt 0:00:10]} 10. Bc2 {[%emt 0:07:26]} Nf6 {[%emt 0:04:20]} 11. Nd2 {[%emt 0:08:36]} Bd6 {[%emt 0:03:54]} 12. Bg5 {[%emt 0:02:25]} O-O-O {[%emt 0:08:11]} 13. Nb3 {[%emt 0:08:13]} Nc4 {[%emt 0:02:29]} 14. Qd4 {[%emt 0:02:36]} Kb8 {[%emt 0:17:21]} 15. O-O-O {[%emt 0:01:08]} Rhe8 {[%emt 0:03:37]} 16. Ng3 {[%emt 0:02:20]} Be5 {[%emt 0:12:05]} 17. Qd3 {[%emt 0:04:21]} h6 {[%emt 0:04:12]} 18. Bxf6 {[%emt 0:06:15]} Bxf6 {[%emt 0:00:08]} 19. Rde1 {[%emt 0:01:00]} g6 {[%emt 0:11:28]} 20. Kb1 {[%emt 0:04:59]} Bb5 {[%emt 0:05:23]} 21. Rxe8 {[%emt 0:03:07]} Rxe8 {[%emt 0:02:57]} 22. Ka1 {[%emt 0:03:17]} Ba6 {[%emt 0:01:10]} 23. Qxd5 {[%emt 0:03:28]} Nxb2 {[%emt 0:04:28]} 24. Nc5 {[%emt 0:03:26]} Bxc3 {[%emt 0:02:23]} 25. Nxa6+ {[%emt 0:01:42]} bxa6 {[%emt 0:00:04]} 26. Rb1 {[%emt 0:02:18]} Qb6 {[%emt 0:00:51]} 27. a3 {[%emt 0:02:10]} Nd3+ {[%emt 0:00:12]} 28. Ka2 {[%emt 0:00:13]} Nc1+ {[%emt 0:11:02]} 0-1

[Event "Niedersachsen-ch A 2024"]
[Site "Verden Aller"]
[Date "2024.01.07"]
[Round "7.3"]
[White "Peters, Tom"]
[Black "Schulz, Jens"]
[Result "1-0"]
[ECO "B61"]
[WhiteElo "2102"]
[BlackElo "2152"]
[Annotator "RC"]
[PlyCount "45"]
[EventDate "2024.01.01"]
[EventType "swiss"]
[EventCountry "GER"]
[SourceTitle "playchess.com"]
[Source "ChessBase"]
[SourceQuality "1"]
[TimeControl "40/5400+30:1800+30"]

1. e4 {[%emt 0:00:02]} c5 {[%emt 0:00:30]} 2. Nf3 {[%emt 0:00:20]} Nc6 {[%emt 0:00:46]} 3. d4 {[%emt 0:00:07]} cxd4 {[%emt 0:00:12]} 4. Nxd4 {[%emt 0:00:07]} Nf6 {[%emt 0:00:07]} 5. Nc3 {[%emt 0:00:06]} d6 {[%emt 0:00:08]} 6. Bg5 {[%emt 0:02:25]} Bd7 {[%emt 0:01:43]} 7. Qd2 {[%emt 0:05:38]} Rc8 {[%emt 0:00:25]} 8. f4 {[%emt 0:01:09]} Nxd4 {[%emt 0:15:12]} 9. Qxd4 {[%emt 0:01:45]} Qa5 {[%emt 0:00:03]} 10. e5 {[%emt 0:00:54]} dxe5 {[%emt 0:01:32]} 11. fxe5 {[%emt 0:00:08]} e6 {[%emt 0:00:07]} 12. O-O-O {[%emt 0:00:58]} Bc6 {[%emt 0:01:15]} 13. Nb5 {[%emt 0:06:12]} Bxb5 {[%emt 0:17:02]} 14. exf6 {[%emt 0:00:36]} Bc6 {[%emt 0:25:29]} 15. h4 {[%emt 0:02:48]} g6 {[%emt 0:02:05]} 16. Bc4 {[%emt 0:01:37]} Qc5 {[%emt 0:09:53]} 17. Bxe6 {[%emt 0:26:44]} Qxd4 {[%emt 0:00:03]} 18. Bxc8 {[%emt 0:00:11]} Bc5 {[%emt 0:00:02]} 19. Rxd4 {[%emt 0:02:32]} Bxd4 {[%emt 0:00:04]} 20. Rd1 {[%emt 0:00:16]} Bb6 {[%emt 0:03:23]} 21. Bh6 {[%emt 0:01:52]} Rg8 {[%emt 0:00:48]} 22. Re1+ {[%emt 0:07:13]} Kd8 {[%emt 0:00:06]} 23. Be6 {[%emt 0:00:06]} 1-0

[Event "Niedersachsen-ch A 2024"]
[Site "Verden Aller"]
[Date "2024.01.07"]
[Round "7.4"]
[White "Loecken, Siegfried"]
[Black "Celik, Abdullah"]
[Result "0-1"]
[ECO "B20"]
[WhiteElo "2014"]
[BlackElo "2081"]
[Annotator "NA RC"]
[PlyCount "33"]
[EventDate "2024.01.01"]
[EventType "swiss"]
[EventCountry "GER"]
[SourceTitle "playchess.com"]
[Source "ChessBase"]
[SourceQuality "1"]
[TimeControl "40/5400+30:1800+30"]

1. e4 {[%emt 0:00:02]} c5 {[%emt 0:00:10]} 2. d3 {[%emt 0:00:40]} Nc6 {[%emt 0:00:09]} 3. g3 {[%emt 0:00:16]} g6 {[%emt 0:00:03]} 4. Bg2 {[%emt 0:00:09]} Bg7 {[%emt 0:00:02]} 5. Ne2 {[%emt 0:00:18]} d6 {[%emt 0:00:14]} 6. O-O {[%emt 0:00:04]} e6 {[%emt 0:00:16]} 7. c3 {[%emt 0:00:52]} Nge7 {[%emt 0:00:03]} 8. Nd2 {[%emt 0:00:12]} O-O {[%emt 0:00:03]} 9. Nf3 {[%emt 0:03:00]} e5 {[%emt 0:13:54]} 10. a4 {[%emt 0:00:42]} d5 {[%emt 0:04:36]} 11. exd5 {[%emt 0:12:39]} Nxd5 {[%emt 0:00:03]} 12. d4 {[%emt 0:00:33]} exd4 {[%emt 0:06:23]} 13. cxd4 {[%emt 0:00:28]} c4 {[%emt 0:11:27]} 14. Qc2 {[%emt 0:15:34]} Bf5 {[%emt 0:03:43]} 15. Qxc4 {[%emt 0:00:49]} Na5 {[%emt 0:00:03]} 16. Qc5 {[%emt 0:02:02]} Nb3 {[%emt 0:00:21]} 17. Bg5 {[%emt 0:00:58]} 0-1